[Event "*** Titled Tuesday Blitz"]
[Site "Chess.com"]
[Date "2018.05.01"]
[Round "7"]
[White "GameOverBro"]
[Black "dolynachess"]
[Result "0-1"]
[WhiteElo "2412"]
[BlackElo "2386"]
[TimeControl "180+2"]
[EndTime "14:37:51 PDT"]
[Termination "dolynachess won by resignation"]

1. e4 {[%clk 0:02:57.6]} 1... d5 {[%clk 0:03:01]} 2. d3 {[%clk 0:02:54.9]} 2...
Nf6 {[%clk 0:02:56.7]} 3. Nd2 {[%clk 0:02:54.9]} 3... e5 {[%clk 0:02:56.6]} 4.
Ngf3 {[%clk 0:02:51.2]} 4... Nc6 {[%clk 0:02:57]} 5. Be2 {[%clk 0:02:51.9]} 5...
dxe4 {[%clk 0:02:51.1]} 6. dxe4 {[%clk 0:02:52.6]} 6... Bc5 {[%clk 0:02:52.1]}
7. O-O {[%clk 0:02:51.2]} 7... O-O {[%clk 0:02:52.9]} 8. c3 {[%clk 0:02:52.1]}
8... a5 {[%clk 0:02:54.1]} 9. Qc2 {[%clk 0:02:46.9]} 9... h6 {[%clk 0:02:54.8]}
10. h3 {[%clk 0:02:47]} 10... Be6 {[%clk 0:02:50.8]} 11. Bc4 {[%clk 0:02:42.6]}
11... Qe7 {[%clk 0:02:51]} 12. Re1 {[%clk 0:02:37.1]} 12... Rfd8 {[%clk
0:02:48.7]} 13. b3 {[%clk 0:02:22.5]} 13... Rd7 {[%clk 0:02:43.3]} 14. Bxe6
{[%clk 0:02:20.6]} 14... Qxe6 {[%clk 0:02:43.6]} 15. Nf1 {[%clk 0:02:18.7]}
15... Rad8 {[%clk 0:02:37.1]} 16. Be3 {[%clk 0:02:19.2]} 16... Bxe3 {[%clk
0:02:32.7]} 17. Nxe3 {[%clk 0:02:21.1]} 17... g6 {[%clk 0:02:28.1]} 18. Rad1
{[%clk 0:02:18.9]} 18... Kg7 {[%clk 0:02:28.8]} 19. Rxd7 {[%clk 0:02:17.7]}
19... Rxd7 {[%clk 0:02:30.7]} 20. Rd1 {[%clk 0:02:18.2]} 20... Rxd1+ {[%clk
0:02:30.1]} 21. Nxd1 {[%clk 0:02:17.8]} 21... Qd6 {[%clk 0:02:24.9]} 22. Ne3
{[%clk 0:02:16.9]} 22... b5 {[%clk 0:02:22.1]} 23. Nh4 {[%clk 0:02:03.7]} 23...
Ne7 {[%clk 0:02:16]} 24. Kf1 {[%clk 0:01:56.5]} 24... Qc6 {[%clk 0:02:08.3]} 25.
f3 {[%clk 0:01:42.1]} 25... Ne8 {[%clk 0:02:08.1]} 26. Qd3 {[%clk 0:01:33.3]}
26... Nd6 {[%clk 0:02:08.2]} 27. g3 {[%clk 0:01:24.5]} 27... Qc5 {[%clk
0:02:07.7]} 28. Nhg2 {[%clk 0:01:21.2]} 28... Qa3 {[%clk 0:02:08.2]} 29. Qd2
{[%clk 0:01:18.4]} 29... Qc5 {[%clk 0:01:58.2]} 30. Ne1 {[%clk 0:01:14.5]} 30...
f6 {[%clk 0:01:48.6]} 31. Ke2 {[%clk 0:01:13.3]} 31... h5 {[%clk 0:01:48.9]} 32.
h4 {[%clk 0:01:12.7]} 32... Kf7 {[%clk 0:01:49.5]} 33. Nd3 {[%clk 0:01:09]}
33... Qa3 {[%clk 0:01:48.2]} 34. Ne1 {[%clk 0:01:05.2]} 34... Qc5 {[%clk
0:01:46.2]} 35. Nd3 {[%clk 0:01:05.3]} 35... Qa3 {[%clk 0:01:46.9]} 36. Ne1
{[%clk 0:01:06.1]} 36... Qc5 {[%clk 0:01:47.7]} 37. N1c2 {[%clk 0:01:05.8]}
37... a4 {[%clk 0:01:29.6]} 38. Qd3 {[%clk 0:01:05.6]} 38... Ke6 {[%clk
0:01:18.9]} 39. Nb4 {[%clk 0:01:04.4]} 39... axb3 {[%clk 0:01:14.1]} 40. axb3
{[%clk 0:01:04.7]} 40... c6 {[%clk 0:01:15.4]} 41. Na6 {[%clk 0:00:56.5]} 41...
Qa7 {[%clk 0:01:15]} 42. Nb4 {[%clk 0:00:56.4]} 42... Qa2+ {[%clk 0:01:15.4]}
43. Qc2 {[%clk 0:00:55.6]} 43... Qa1 {[%clk 0:01:11.7]} 44. Nd1 {[%clk
0:00:45.5]} 44... c5 {[%clk 0:01:00.6]} 45. Nd3 {[%clk 0:00:44.6]} 45... c4
{[%clk 0:00:56.3]} 46. Nb4 {[%clk 0:00:41.8]} 46... cxb3 {[%clk 0:00:49.7]} 47.
Qxb3+ {[%clk 0:00:42.6]} 47... Nc4 {[%clk 0:00:50.5]} 48. Ne3 {[%clk 0:00:37.6]}
48... Qh1 {[%clk 0:00:39.5]} 49. Nxc4 {[%clk 0:00:37.4]} 49... Qg2+ {[%clk
0:00:40.5]} 50. Ke3 {[%clk 0:00:35.7]} 50... Qg1+ {[%clk 0:00:40]} 51. Ke2
{[%clk 0:00:35.6]} 51... Qg2+ {[%clk 0:00:41]} 52. Ke3 {[%clk 0:00:36.7]} 52...
Qg1+ {[%clk 0:00:41.8]} 53. Kd2 {[%clk 0:00:34.7]} 53... Qf2+ {[%clk 0:00:41]}
54. Kd3 {[%clk 0:00:31.5]} 54... Qf1+ {[%clk 0:00:41.5]} 55. Kd2 {[%clk
0:00:32.6]} 55... bxc4 {[%clk 0:00:42.4]} 56. Qa3 {[%clk 0:00:29.2]} 56... Qf2+
{[%clk 0:00:38.2]} 57. Kc1 {[%clk 0:00:30.2]} 57... Qxf3 {[%clk 0:00:38.2]} 58.
Qa6+ {[%clk 0:00:30.9]} 58... Kd7 {[%clk 0:00:34.9]} 59. Qxc4 {[%clk 0:00:32.8]}
59... Qxg3 {[%clk 0:00:35.2]} 60. Qb5+ {[%clk 0:00:30.6]} 60... Ke6 {[%clk
0:00:34.9]} 61. Qb6+ {[%clk 0:00:29.8]} 61... Kf7 {[%clk 0:00:35]} 62. Qc7
{[%clk 0:00:29.7]} 62... Qxh4 {[%clk 0:00:29.4]} 63. Nd5 {[%clk 0:00:30.1]}
63... f5 {[%clk 0:00:27.9]} 64. exf5 {[%clk 0:00:30.3]} 64... gxf5 {[%clk
0:00:28.2]} 65. Qxe5 {[%clk 0:00:28.6]} 65... Qh1+ {[%clk 0:00:28.8]} 66. Kb2
{[%clk 0:00:21.5]} 66... Qxd5 {[%clk 0:00:30.2]} 67. Qh8 {[%clk 0:00:22.1]}
67... f4 {[%clk 0:00:29.9]} 68. Qh7+ {[%clk 0:00:21.8]} 68... Ke6 {[%clk
0:00:30.7]} 69. Qh6+ {[%clk 0:00:21.2]} 69... Ke5 {[%clk 0:00:31.2]} 70. Qxh5+
{[%clk 0:00:22]} 70... Nf5 {[%clk 0:00:31.5]} 71. Qe8+ {[%clk 0:00:21.7]} 71...
Qe6 {[%clk 0:00:32.5]} 72. Qh8+ {[%clk 0:00:22.3]} 72... Ke4 {[%clk 0:00:33.4]}
73. Qh1+ {[%clk 0:00:20.2]} 73... f3 {[%clk 0:00:34.7]} 74. Qe1+ {[%clk
0:00:21]} 74... Ne3 {[%clk 0:00:35.8]} 75. Kc1 {[%clk 0:00:20.2]} 75... Qg4
{[%clk 0:00:32.4]} 76. Kb2 {[%clk 0:00:19.4]} 76... Qg2+ {[%clk 0:00:31.8]} 77.
Kb3 {[%clk 0:00:20.9]} 77... f2 {[%clk 0:00:19.3]} 78. Qb1+ {[%clk 0:00:21.2]}
78... Kf3 {[%clk 0:00:19.4]} 0-1

[Event "*** Titled Tuesday Blitz"]
[Site "Chess.com"]
[Date "2018.05.01"]
[Round "7"]
[White "Fins0905"]
[Black "SipkeErnst"]
[Result "1-0"]
[WhiteElo "2577"]
[BlackElo "2510"]
[TimeControl "180+2"]
[EndTime "14:38:00 PDT"]
[Termination "Fins0905 won by resignation"]

1. d4 {[%clk 0:03:01.9]} 1... Nf6 {[%clk 0:02:58.7]} 2. Nf3 {[%clk 0:03:01.4]}
2... g6 {[%clk 0:02:59]} 3. Bg5 {[%clk 0:03:00.9]} 3... Bg7 {[%clk 0:02:59.1]}
4. Nbd2 {[%clk 0:03:02]} 4... d5 {[%clk 0:02:59.1]} 5. e3 {[%clk 0:03:02.7]}
5... O-O {[%clk 0:02:58.6]} 6. Be2 {[%clk 0:03:02.8]} 6... c5 {[%clk 0:02:58.8]}
7. c3 {[%clk 0:03:03.4]} 7... b6 {[%clk 0:02:52.7]} 8. O-O {[%clk 0:03:03.1]}
8... Bb7 {[%clk 0:02:53]} 9. h3 {[%clk 0:03:03.8]} 9... Nbd7 {[%clk 0:02:52.3]}
10. Bf4 {[%clk 0:03:01.9]} 10... e6 {[%clk 0:02:37.1]} 11. a4 {[%clk 0:02:56.6]}
11... a6 {[%clk 0:02:34.2]} 12. Qb3 {[%clk 0:02:52.5]} 12... c4 {[%clk
0:02:22.2]} 13. Qc2 {[%clk 0:02:45]} 13... b5 {[%clk 0:02:21.3]} 14. Ra3 {[%clk
0:02:32.8]} 14... Qb6 {[%clk 0:02:18.2]} 15. axb5 {[%clk 0:02:30.3]} 15... axb5
{[%clk 0:02:18.2]} 16. Rfa1 {[%clk 0:02:31.7]} 16... Rfc8 {[%clk 0:02:11]} 17.
b4 {[%clk 0:02:21.3]} 17... Rxa3 {[%clk 0:01:50.5]} 18. Rxa3 {[%clk 0:02:21.6]}
18... Ra8 {[%clk 0:01:51]} 19. Rxa8+ {[%clk 0:02:18.1]} 19... Bxa8 {[%clk
0:01:52.9]} 20. Qa2 {[%clk 0:02:13.5]} 20... Bc6 {[%clk 0:01:53.6]} 21. Ne1
{[%clk 0:02:02.3]} 21... Bf8 {[%clk 0:01:48.2]} 22. Nc2 {[%clk 0:01:58.2]} 22...
Ne8 {[%clk 0:01:37.7]} 23. Bg3 {[%clk 0:01:15.5]} 23... Bd6 {[%clk 0:01:35.2]}
24. f4 {[%clk 0:01:15.6]} 24... Ng7 {[%clk 0:01:27.3]} 25. Bf2 {[%clk
0:01:12.6]} 25... h5 {[%clk 0:01:26.2]} 26. Bf3 {[%clk 0:01:04]} 26... Be7
{[%clk 0:01:08.6]} 27. g4 {[%clk 0:00:54.1]} 27... hxg4 {[%clk 0:01:08.6]} 28.
hxg4 {[%clk 0:00:56]} 28... g5 {[%clk 0:01:02.7]} 29. Nf1 {[%clk 0:00:46.3]}
29... Nf8 {[%clk 0:00:43.6]} 30. Ne1 {[%clk 0:00:41.1]} 30... Qb8 {[%clk
0:00:43.9]} 31. Ng2 {[%clk 0:00:37.3]} 31... Ng6 {[%clk 0:00:43.9]} 32. Qa6
{[%clk 0:00:34.7]} 32... Qb7 {[%clk 0:00:32.8]} 33. Qa5 {[%clk 0:00:26.9]} 33...
Qb8 {[%clk 0:00:31.6]} 34. Qa6 {[%clk 0:00:23.7]} 34... Qa8 {[%clk 0:00:32]} 35.
Qxa8+ {[%clk 0:00:18.5]} 35... Bxa8 {[%clk 0:00:32.3]} 36. Bg3 {[%clk 0:00:20]}
36... Nf8 {[%clk 0:00:26.1]} 37. Kf2 {[%clk 0:00:17]} 37... Nd7 {[%clk
0:00:26.6]} 38. Bh2 {[%clk 0:00:08.7]} 38... Nb6 {[%clk 0:00:27.4]} 39. Bd1
{[%clk 0:00:06.1]} 39... f5 {[%clk 0:00:21.3]} 40. gxf5 {[%clk 0:00:05.6]} 40...
Nxf5 {[%clk 0:00:21.9]} 41. fxg5 {[%clk 0:00:05]} 41... Bxg5 {[%clk 0:00:22]}
42. Nd2 {[%clk 0:00:05.1]} 42... Kf7 {[%clk 0:00:19.6]} 43. Bc2 {[%clk
0:00:04.9]} 43... Kf6 {[%clk 0:00:18.7]} 44. Nf3 {[%clk 0:00:04.3]} 44... Bh6
{[%clk 0:00:18.7]} 45. Be5+ {[%clk 0:00:04.6]} 45... Ke7 {[%clk 0:00:19.3]} 46.
Ke2 {[%clk 0:00:05.4]} 46... Nd6 {[%clk 0:00:19.9]} 47. Nd2 {[%clk 0:00:05.9]}
47... Bc6 {[%clk 0:00:19.5]} 48. Nf4 {[%clk 0:00:06.5]} 48... Be8 {[%clk
0:00:19.4]} 49. Nb1 {[%clk 0:00:06.4]} 49... Nd7 {[%clk 0:00:17.9]} 50. Bxd6+
{[%clk 0:00:05.4]} 50... Kxd6 {[%clk 0:00:18.2]} 51. Na3 {[%clk 0:00:06.6]}
51... Nf6 {[%clk 0:00:19.1]} 52. Ng6 {[%clk 0:00:06.7]} 52... Kc6 {[%clk
0:00:16.4]} 53. Ne5+ {[%clk 0:00:07.5]} 53... Kb6 {[%clk 0:00:16.4]} 54. Kd2
{[%clk 0:00:05.9]} 54... Nd7 {[%clk 0:00:14.6]} 55. Nxd7+ {[%clk 0:00:05.6]}
55... Bxd7 {[%clk 0:00:15.5]} 56. Ke2 {[%clk 0:00:07]} 56... Bg7 {[%clk
0:00:15.8]} 57. Kf3 {[%clk 0:00:07]} 57... e5 {[%clk 0:00:16.8]} 58. Bg6 {[%clk
0:00:05.3]} 58... e4+ {[%clk 0:00:14.4]} 59. Ke2 {[%clk 0:00:06.4]} 59... Bg4+
{[%clk 0:00:14.6]} 60. Kd2 {[%clk 0:00:06.9]} 60... Be6 {[%clk 0:00:15]} 61. Be8
{[%clk 0:00:07.9]} 61... Bf8 {[%clk 0:00:11.3]} 62. Bxb5 {[%clk 0:00:08.4]}
62... Be7 {[%clk 0:00:13.2]} 63. Be8 {[%clk 0:00:09]} 63... Bd6 {[%clk 0:00:14]}
64. Nc2 {[%clk 0:00:06.8]} 64... Bg3 {[%clk 0:00:13.1]} 65. Ne1 {[%clk
0:00:06.3]} 65... Bh3 {[%clk 0:00:13.6]} 66. Bf7 {[%clk 0:00:06.1]} 66... Kc6
{[%clk 0:00:13.8]} 67. Nc2 {[%clk 0:00:06.3]} 67... Bc7 {[%clk 0:00:11.8]} 68.
b5+ {[%clk 0:00:06.4]} 68... Kd6 {[%clk 0:00:12.6]} 69. Nb4 {[%clk 0:00:07]}
69... Be6 {[%clk 0:00:12]} 70. Bxe6 {[%clk 0:00:08]} 70... Kxe6 {[%clk
0:00:13.9]} 71. Na6 {[%clk 0:00:07.4]} 71... Bb6 {[%clk 0:00:13.2]} 72. Ke2
{[%clk 0:00:06.6]} 72... Kd6 {[%clk 0:00:13.2]} 73. Kd2 {[%clk 0:00:05.1]} 73...
Ke6 {[%clk 0:00:13.6]} 74. Kc2 {[%clk 0:00:03.9]} 74... Kd6 {[%clk 0:00:14.4]}
75. Nb4 {[%clk 0:00:05.2]} 75... Ba5 {[%clk 0:00:15]} 76. Nc6 {[%clk 0:00:05.8]}
76... Bb6 {[%clk 0:00:11.8]} 77. Kb2 {[%clk 0:00:07.3]} 77... Kc7 {[%clk
0:00:10.6]} 78. Ka3 {[%clk 0:00:08.3]} 78... Kb7 {[%clk 0:00:12.2]} 79. Ne7
{[%clk 0:00:07.9]} 79... Bc7 {[%clk 0:00:13.1]} 80. Nxd5 {[%clk 0:00:09.1]}
80... Bd6+ {[%clk 0:00:14.3]} 81. Ka4 {[%clk 0:00:10.5]} 1-0

[Event "*** Titled Tuesday Blitz"]
[Site "Chess.com"]
[Date "2018.05.01"]
[Round "7"]
[White "TigranLPetrosyan"]
[Black "Alexander_Moskalenko"]
[Result "1-0"]
[WhiteElo "2714"]
[BlackElo "2753"]
[TimeControl "180+2"]
[EndTime "14:38:39 PDT"]
[Termination "TigranLPetrosyan won by resignation"]

1. Nf3 {[%clk 0:03:01.9]} 1... d5 {[%clk 0:03:00.1]} 2. g3 {[%clk 0:03:03.8]}
2... c6 {[%clk 0:03:01.4]} 3. Bg2 {[%clk 0:03:05.3]} 3... g6 {[%clk 0:03:03.3]}
4. c4 {[%clk 0:03:04.6]} 4... Bg7 {[%clk 0:03:05.2]} 5. cxd5 {[%clk 0:03:00.8]}
5... cxd5 {[%clk 0:03:05.8]} 6. d4 {[%clk 0:03:02.7]} 6... Nf6 {[%clk
0:03:03.3]} 7. Nc3 {[%clk 0:03:04.6]} 7... O-O {[%clk 0:03:01.6]} 8. Ne5 {[%clk
0:03:04.3]} 8... Nc6 {[%clk 0:02:36.3]} 9. O-O {[%clk 0:03:02.9]} 9... Qb6
{[%clk 0:02:34.1]} 10. Na4 {[%clk 0:03:03.3]} 10... Qb5 {[%clk 0:02:31.7]} 11.
Nc3 {[%clk 0:02:50.7]} 11... Qb6 {[%clk 0:02:32.2]} 12. Nxc6 {[%clk 0:02:52.2]}
12... bxc6 {[%clk 0:02:33.2]} 13. Bf4 {[%clk 0:02:53.6]} 13... Qxb2 {[%clk
0:02:24.6]} 14. Na4 {[%clk 0:02:52.4]} 14... Qb4 {[%clk 0:02:19.2]} 15. Rb1
{[%clk 0:02:47.6]} 15... Qa5 {[%clk 0:02:20.3]} 16. Bd2 {[%clk 0:02:37.8]} 16...
Qc7 {[%clk 0:02:21]} 17. Bf4 {[%clk 0:02:36.3]} 17... Qa5 {[%clk 0:02:22.1]} 18.
Nc5 {[%clk 0:02:32.9]} 18... Nd7 {[%clk 0:02:16.8]} 19. Nb3 {[%clk 0:02:28.1]}
19... Qa4 {[%clk 0:02:17.9]} 20. Qd2 {[%clk 0:02:25.5]} 20... Ba6 {[%clk
0:02:17.8]} 21. Rfc1 {[%clk 0:02:20.1]} 21... Rfc8 {[%clk 0:02:18.6]} 22. e3
{[%clk 0:02:17.9]} 22... Bb5 {[%clk 0:02:02.1]} 23. h4 {[%clk 0:02:15.8]} 23...
h5 {[%clk 0:02:01.1]} 24. Bh3 {[%clk 0:02:08.1]} 24... e6 {[%clk 0:02:02]} 25.
g4 {[%clk 0:02:09.7]} 25... hxg4 {[%clk 0:01:44.6]} 26. Bxg4 {[%clk 0:02:11.6]}
26... Qa3 {[%clk 0:01:32.2]} 27. Nc5 {[%clk 0:02:10.1]} 27... Nxc5 {[%clk
0:01:32.7]} 28. Rxc5 {[%clk 0:02:08.4]} 28... Bc4 {[%clk 0:01:23.5]} 29. h5
{[%clk 0:01:56.1]} 29... gxh5 {[%clk 0:01:24]} 30. Bxh5 {[%clk 0:01:55.9]} 30...
Rf8 {[%clk 0:01:13.1]} 31. Rxc6 {[%clk 0:01:28]} 31... Qe7 {[%clk 0:01:13.3]}
32. Rc7 {[%clk 0:01:25.2]} 32... Qh4 {[%clk 0:01:14]} 33. Bf3 {[%clk 0:01:20.7]}
33... Rac8 {[%clk 0:00:44.8]} 34. Rxc8 {[%clk 0:01:10.3]} 34... Rxc8 {[%clk
0:00:46.7]} 35. Bg3 {[%clk 0:01:11.9]} 35... Qh7 {[%clk 0:00:44.2]} 36. Rb7
{[%clk 0:01:09.3]} 36... Bd3 {[%clk 0:00:41]} 37. Rxa7 {[%clk 0:01:07.1]} 37...
Be4 {[%clk 0:00:41]} 38. Bxe4 {[%clk 0:01:02.4]} 38... Qxe4 {[%clk 0:00:42.9]}
39. Rc7 {[%clk 0:00:58.2]} 39... Ra8 {[%clk 0:00:43.3]} 40. Rb7 {[%clk
0:00:57.2]} 40... Bf8 {[%clk 0:00:39.5]} 41. Qb2 {[%clk 0:00:45.2]} 41... Kg7
{[%clk 0:00:34.2]} 42. Be5+ {[%clk 0:00:41.7]} 42... Kg6 {[%clk 0:00:35.2]} 43.
Rb8 {[%clk 0:00:36.4]} 43... Qg4+ {[%clk 0:00:31.8]} 44. Bg3 {[%clk 0:00:32.9]}
44... Qd1+ {[%clk 0:00:27.4]} 45. Kg2 {[%clk 0:00:32.8]} 45... Ba3 {[%clk
0:00:29.3]} 46. Qb7 {[%clk 0:00:32.6]} 46... Rxb8 {[%clk 0:00:26.4]} 47. Qxb8
{[%clk 0:00:33.5]} 47... Kg7 {[%clk 0:00:28.3]} 48. Be5+ {[%clk 0:00:27.1]}
48... f6 {[%clk 0:00:27.9]} 49. Qc7+ {[%clk 0:00:27.4]} 49... Kg6 {[%clk
0:00:27.9]} 50. Bg3 {[%clk 0:00:26.9]} 50... Qd3 {[%clk 0:00:27.6]} 51. Qc8
{[%clk 0:00:25.9]} 51... Qe4+ {[%clk 0:00:27.7]} 52. Kh2 {[%clk 0:00:26]} 52...
Kf7 {[%clk 0:00:27.6]} 53. Qb7+ {[%clk 0:00:19.3]} 53... Be7 {[%clk 0:00:26.1]}
54. a4 {[%clk 0:00:13.2]} 54... e5 {[%clk 0:00:16.4]} 55. a5 {[%clk 0:00:11.6]}
55... exd4 {[%clk 0:00:16.3]} 56. exd4 {[%clk 0:00:07.4]} 56... f5 {[%clk
0:00:14.1]} 57. Qc7 {[%clk 0:00:07.5]} 57... Qe6 {[%clk 0:00:11.2]} 58. Qe5
{[%clk 0:00:07.6]} 58... Qh6+ {[%clk 0:00:02.9]} 59. Kg2 {[%clk 0:00:08.7]}
59... Ke8 {[%clk 0:00:04.5]} 60. Qxf5 {[%clk 0:00:08.1]} 60... Qa6 {[%clk
0:00:06.1]} 61. Qxd5 {[%clk 0:00:08.9]} 61... Bd8 {[%clk 0:00:07.6]} 62. Qe5+
{[%clk 0:00:09.7]} 62... Kd7 {[%clk 0:00:08.8]} 63. Qf5+ {[%clk 0:00:10.2]}
63... Ke8 {[%clk 0:00:09.9]} 64. Qh5+ {[%clk 0:00:11.1]} 64... Kd7 {[%clk
0:00:10.6]} 65. Qf7+ {[%clk 0:00:12.1]} 65... Kc8 {[%clk 0:00:11.3]} 66. Qf5+
{[%clk 0:00:13.4]} 66... Kb7 {[%clk 0:00:09.7]} 67. Qd5+ {[%clk 0:00:14.5]}
67... Kc8 {[%clk 0:00:10.7]} 68. Qf5+ {[%clk 0:00:14.6]} 68... Kb7 {[%clk
0:00:11.4]} 69. Qf7+ {[%clk 0:00:15.3]} 69... Kc8 {[%clk 0:00:12.4]} 70. d5
{[%clk 0:00:16.4]} 70... Qxa5 {[%clk 0:00:07.9]} 71. Qe6+ {[%clk 0:00:16.6]}
71... Kb7 {[%clk 0:00:08.8]} 72. Qc6+ {[%clk 0:00:16.7]} 72... Ka7 {[%clk
0:00:09.1]} 73. Qd7+ {[%clk 0:00:14.3]} 73... Ka6 {[%clk 0:00:08]} 74. Qc6+
{[%clk 0:00:12.8]} 74... Ka7 {[%clk 0:00:03.5]} 75. Bf4 {[%clk 0:00:13.4]} 75...
Bb6 {[%clk 0:00:02.6]} 76. Qd7+ {[%clk 0:00:14]} 76... Ka6 {[%clk 0:00:03.7]}
77. Qc8+ {[%clk 0:00:15.2]} 77... Kb5 {[%clk 0:00:04.9]} 78. Qc6+ {[%clk
0:00:16.7]} 78... Ka6 {[%clk 0:00:06.1]} 79. Be3 {[%clk 0:00:14.8]} 79... Qb4
{[%clk 0:00:06.9]} 80. Qxb6+ {[%clk 0:00:15.7]} 80... Qxb6 {[%clk 0:00:08.8]}
81. Bxb6 {[%clk 0:00:17.1]} 81... Kxb6 {[%clk 0:00:10.7]} 82. Kf3 {[%clk
0:00:18.9]} 82... Kc5 {[%clk 0:00:12.6]} 83. Ke4 {[%clk 0:00:20.8]} 83... Kd6
{[%clk 0:00:12.6]} 84. f4 {[%clk 0:00:22.7]} 1-0